bitfinex-derivatives/quotes_ETHF0:USTF0_20260213
["timestamp","ask_amount","ask_price","bid_price","bid_amount"]
[1770945868325,0.55403072,1939.4,1938.8,0.55751334]
[1770945871022,0.55403072,1939.4,1938.7,0.54850349]
[1770945871629,0.55403072,1939.4,1938.5,13.95645505]
[1770945871821,0.55403072,1939.4,1938.6,0.54850349]
[1770945877530,0.55403072,1939.4,1938.4,13.71047097]
[1770945877732,0.55403072,1939.4,1938.5,0.56666941]
[1770945878128,0.55403072,1939.4,1938.4,6.06466941]
[1770945878333,0.57517118,1939.2,1938.4,5.498]
[1770945878635,0.57517118,1939.2,1938.5,0.56666941]
[1770945878931,0.57517118,1939.2,1938.4,5.498]
[1770945879335,0.57517118,1939.2,1938.4,6.06466941]
[1770945880332,0.57517118,1939.2,1938.5,0.56666941]
[1770945885136,0.57517118,1939.5,1938.5,0.56666941]
[1770945885338,0.57517118,1939.5,1938.7,0.56666941]
[1770945887939,0.57517118,1939.8,1938.7,0.56666941]
[1770945888144,0.57517118,1939.8,1938.9,0.56666941]
[1770945888343,0.57517118,1939.8,1939.1,0.56666941]
[1770945888840,0.57517118,1939.8,1939.0,5.511]
[1770945890745,0.57517118,1939.6,1938.8,0.56666941]
[1770945894742,0.57517118,1939.6,1938.5,0.56666941]
[1770945895441,0.57517118,1939.4,1938.5,0.56666941]
[1770945896545,0.57517118,1939.2,1938.3,0.56666941]
[1770945897048,0.57517118,1939.0,1938.2,0.0048296]
[1770945897252,0.57913035,1939.0,1938.2,0.0048296]
[1770945900144,0.57517118,1938.8,1938.2,0.0048296]
[1770945900344,4.62669619,1938.9,1937.6,40.8]
[1770945900345,0.57517118,1938.6,1937.6,0.56666941]
[1770945900847,0.55365407,1938.9,1937.8,0.54922274]
[1770945901040,0.55365407,1938.7,1937.8,0.54922274]
[1770945901238,0.55365407,1938.7,1937.8,0.5541207]
[1770945905244,0.55365407,1938.7,1937.8,0.00489796]
[1770945905748,0.55365407,1938.7,1937.8,0.5541207]
[1770945906047,0.55365407,1938.7,1937.8,0.00489796]
[1770945906948,0.55365407,1938.5,1937.8,0.00489796]
[1770945908046,0.55365407,1938.5,1937.8,0.5541207]
[1770945909346,0.55365407,1938.9,1937.8,0.5541207]
[1770945920255,0.55365407,1938.7,1937.8,0.5541207]
[1770945920952,0.55365407,1938.5,1937.8,0.5541207]
[1770945921353,0.55365407,1938.5,1937.8,0.00489796]
[1770945922059,0.55365407,1938.5,1937.8,0.5541207]
[1770945922860,0.55365407,1938.5,1938.0,0.54922274]
[1770945923449,1.53467601,1938.8,1938.0,0.54922274]
[1770945923656,0.55365407,1938.7,1938.0,0.54922274]
[1770945923958,0.55365407,1938.9,1938.2,0.54922274]
[1770945924657,0.55365407,1938.7,1938.0,0.54922274]
[1770945925555,3.08147905,1939.0,1938.0,0.54922274]
[1770945925861,0.55365407,1938.9,1938.0,0.54922274]
[1770945926057,0.55365407,1938.9,1938.0,8.1950243]
[1770945926253,0.55365407,1938.9,1938.1,0.54922274]
[1770945926757,0.55365407,1938.9,1938.2,0.54922274]
[1770945927960,0.55365407,1938.7,1938.1,0.54922274]
[1770945928461,0.55365407,1938.7,1938.0,0.54922274]
[1770945928657,0.55365407,1938.7,1937.9,0.54922274]
[1770945928856,0.55365407,1938.7,1937.8,8.19992226]
[1770945929058,0.55365407,1938.7,1937.8,0.5541207]
[1770945929663,0.55365407,1938.5,1937.8,0.5541207]
[1770945937061,0.56602353,1938.7,1937.8,0.5541207]
[1770945937263,0.56602353,1938.7,1937.9,0.58265706]
[1770945939161,0.56602353,1938.5,1937.8,0.58755502]
[1770945939865,0.56602353,1938.5,1937.9,0.58265706]
[1770945941269,0.56602353,1938.5,1938.0,0.58265706]
[1770945942164,0.56602353,1938.9,1938.0,0.58265706]
[1770945942365,4.62129333,1938.8,1938.0,0.58265706]
[1770945942569,0.56602353,1938.7,1938.0,0.58265706]
[1770945943170,0.56602353,1938.9,1938.0,0.58265706]
[1770945948974,0.56602353,1938.9,1938.2,0.58265706]
[1770945950174,0.56602353,1938.8,1938.1,0.58265706]
[1770945950468,0.56602353,1938.8,1938.0,0.58265706]
[1770945950871,0.56602353,1938.6,1937.9,0.58265706]
[1770945951072,0.56602353,1938.6,1937.8,6.19855502]
[1770945951374,0.56602353,1938.6,1937.8,0.58755502]
[1770945951577,0.56602353,1938.4,1937.8,0.58755502]
[1770945951770,0.56602353,1938.4,1937.8,0.00489796]
[1770945954078,0.56602353,1938.2,1937.3,0.58658392]
[1770945954270,0.56602353,1938.5,1937.3,0.58658392]
[1770945954473,0.56602353,1938.4,1937.4,0.58265706]
[1770945954671,0.56602353,1938.4,1937.5,0.58265706]
[1770945954980,0.56602353,1938.6,1937.6,0.58265706]
[1770945955975,0.56602353,1938.6,1937.7,0.58265706]
[1770945959479,0.56602353,1938.8,1937.9,0.58265706]
[1770945961575,0.55745217,1938.6,1937.7,0.5953644]
[1770945963184,0.55745217,1938.4,1937.5,8.24116596]
[1770945963379,0.55745217,1938.4,1937.3,8.24509282]
[1770945963576,0.55745217,1938.2,1937.3,0.59929126]
[1770945965881,0.55745217,1938.5,1937.4,0.5953644]
[1770945966282,0.55745217,1938.5,1937.5,0.5953644]
[1770945971092,0.55745217,1938.5,1937.6,0.5953644]
[1770945976893,0.55745217,1938.5,1937.8,0.5953644]
[1770945978286,0.55745217,1938.7,1938.0,0.5953644]
[1770945980096,0.55745217,1938.7,1938.1,0.5953644]
[1770945986298,0.55745217,1938.9,1938.1,0.5953644]
[1770945990507,0.57605617,1939.0,1938.1,0.5953644]
[1770945991205,0.57605617,1939.0,1938.3,0.58381869]
[1770945993404,0.59370544,1939.2,1938.5,0.59568632]
[1770945994108,0.59370544,1939.7,1938.5,0.59568632]
[1770945994308,0.59913823,1939.7,1938.7,0.59568632]
[1770945994507,0.59913823,1939.7,1938.7,0.60039379]
[1770945998405,0.00543279,1939.7,1938.9,0.59568632]
[1770945998604,0.59913823,1939.7,1938.9,0.59568632]
[1770946000908,0.59913823,1939.7,1939.1,0.59568632]
[1770946001108,0.59370544,1939.9,1939.1,0.59568632]
[1770946001611,0.59370544,1939.9,1939.3,0.59568632]
[1770946002309,0.59817905,1939.9,1939.3,0.59568632]
[1770946002512,0.59370544,1939.8,1938.8,0.59568632]
[1770946002709,0.59370544,1939.6,1938.7,0.00470747]
[1770946002906,0.59370544,1939.5,1938.7,0.00470747]
[1770946004603,0.59370544,1939.5,1938.7,0.60039379]
[1770946006814,0.59370544,1939.5,1938.7,0.00470747]
[1770946011410,0.59370544,1939.5,1938.7,0.60039379]
[1770946011915,0.59370544,1939.5,1938.7,0.00470747]
[1770946013917,0.59370544,1939.5,1938.7,0.60039379]
[1770946016021,0.59370544,1939.5,1938.7,0.00470747]
[1770946016216,0.59370544,1939.5,1938.3,0.59568632]
[1770946016518,0.59370544,1939.3,1938.3,0.59568632]
[1770946016714,0.59370544,1939.1,1938.3,0.59568632]
[1770946016913,0.59370544,1939.0,1938.0,0.59568632]
[1770946017313,0.59370544,1938.8,1938.0,0.00416393]
[1770946017911,0.59370544,1938.6,1937.6,6.17668632]
[1770946018117,0.59370544,1938.4,1937.4,0.59568632]
[1770946018922,0.60036621,1938.4,1937.4,0.60127848]
[1770946023519,0.60036621,1938.4,1937.6,0.54436941]
[1770946023520,0.57697281,1938.4,1937.6,0.54436941]
[1770946024324,0.57697281,1938.4,1937.4,0.54996157]
[1770946024625,0.57031204,1938.3,1937.4,0.00559216]
[1770946027730,0.57031204,1938.3,1937.4,0.54996157]
[1770946035733,0.57697281,1938.4,1937.4,0.54996157]
[1770946036136,0.57697281,1938.4,1937.6,0.54436941]
[1770946046844,0.57031204,1938.3,1937.6,0.54436941]
[1770946048736,0.57031204,1938.3,1937.7,0.54436941]
[1770946049347,0.57031204,1938.3,1937.4,0.54996157]
[1770946050348,1.53521765,1938.2,1937.4,0.54996157]
[1770946050551,0.56655541,1938.0,1937.4,0.00559216]
[1770946050942,2.10177306,1938.0,1937.4,0.00559216]
[1770946051251,0.56655541,1937.9,1937.4,0.00559216]
[1770946051647,3.07751988,1938.2,1936.9,13.16080156]
[1770946051648,0.56655541,1937.7,1937.0,0.57325681]
[1770946052652,0.56655541,1937.7,1937.0,0.57867173]
[1770946053053,0.56655541,1937.7,1937.0,0.00541492]
[1770946053555,0.59316995,1937.5,1937.0,0.00541492]
[1770946058055,0.59316995,1937.5,1937.0,0.56544778]
[1770946062866,0.59316995,1937.6,1937.0,0.56544778]
[1770946065968,0.59316995,1937.6,1936.4,0.56003286]
[1770946066767,0.59316995,1937.6,1936.4,0.56369333]
[1770946074075,0.59316995,1937.6,1936.4,0.82211333]
[1770946074379,0.59316995,1937.6,1936.5,0.56003286]
[1770946078678,0.59316995,1937.6,1936.7,0.56003286]
[1770946079382,0.59316995,1937.6,1936.8,0.56003286]
[1770946080879,0.59316995,1937.6,1937.1,0.58667221]
[1770946081081,0.5862001,1937.9,1937.3,0.58667221]
[1770946081778,0.5862001,1937.9,1937.5,0.58667221]
[1770946083079,3.08418065,1938.4,1937.5,0.58667221]
[1770946083385,0.5862001,1938.3,1937.7,0.58667221]
[1770946085787,0.5862001,1938.3,1937.3,0.58667221]
[1770946091890,0.5862001,1938.3,1937.5,0.58667221]
[1770946092093,0.00666077,1938.4,1937.5,0.58667221]
[1770946092487,0.00666077,1938.4,1937.7,0.58667221]
[1770946093187,0.5862001,1939.4,1938.5,0.58667221]
[1770946093993,0.5862001,1939.9,1938.5,0.58667221]
[1770946094193,0.00421708,1939.4,1938.5,0.59328685]
[1770946094594,0.00421708,1939.4,1938.7,0.58667221]
[1770946097192,0.5862001,1939.7,1938.7,0.58667221]
[1770946097391,0.5862001,1940.4,1938.7,0.58667221]
[1770946097586,0.5862001,1940.1,1938.7,0.58667221]
[1770946097790,0.5862001,1939.9,1938.7,0.58667221]
[1770946098187,0.5862001,1939.4,1938.5,0.00661464]
[1770946098890,0.5862001,1939.4,1938.5,0.59328685]
[1770946099592,0.5862001,1939.4,1938.5,0.00661464]
[1770946099792,0.5862001,1939.4,1938.5,0.59328685]
[1770946102298,0.5862001,1939.4,1938.5,0.00661464]
[1770946102504,0.5862001,1939.4,1938.2,0.58667221]
[1770946103500,0.5862001,1939.4,1938.2,0.59337543]
[1770946115719,0.5862001,1939.4,1938.4,0.55349282]
[1770946116214,49.36487702,1939.8,1938.4,0.55349282]
[1770946116420,6.70118198,1939.9,1938.6,0.55349282]
[1770946116421,0.55367669,1939.7,1938.6,0.55349282]
[1770946117118,0.55367669,1939.7,1938.8,0.55349282]
[1770946118819,0.55367669,1939.7,1938.6,0.55349282]
[1770946119121,0.55367669,1939.5,1938.6,0.55349282]
[1770946119914,0.55367669,1939.5,1938.3,0.55349282]
[1770946120920,0.55367669,1939.3,1938.3,0.55349282]
[1770946121515,0.55367669,1939.1,1938.3,0.55349282]
[1770946124725,0.55367669,1938.9,1938.3,0.55349282]
[1770946127623,3.07412803,1939.1,1938.3,0.55349282]
[1770946127624,0.55367669,1939.1,1938.3,0.55349282]
[1770946128728,49.91855371,1939.3,1938.3,0.55349282]
[1770946128923,4.58952988,1939.2,1938.3,0.55349282]
[1770946129229,0.55367669,1939.4,1938.4,0.55349282]
[1770946130530,0.55367669,1939.4,1938.5,0.55349282]
[1770946133231,0.55367669,1939.6,1938.6,0.55349282]
[1770946133726,0.55884031,1939.9,1938.9,0.55349282]
[1770946134032,0.55884031,1939.9,1939.1,0.55349282]
[1770946134232,0.00516362,1939.9,1939.1,0.55349282]
[1770946135728,0.55367669,1940.2,1939.1,0.81155282]
[1770946135927,0.55367669,1940.6,1939.4,0.55349282]
[1770946136133,0.55367669,1940.6,1939.5,0.55349282]
[1770946136828,0.55869389,1940.6,1939.5,0.55349282]
[1770946139836,0.55869389,1940.6,1939.4,5.403]
[1770946139837,0.55869389,1940.6,1939.7,0.55349282]
[1770946140034,0.55869389,1940.6,1939.7,0.55862509]
[1770946141141,0.0050172,1940.6,1939.7,0.55862509]
[1770946141529,0.0050172,1940.6,1939.8,0.25797]
[1770946141733,3.07412803,1941.4,1939.7,0.00513227]
[1770946141734,0.54912175,1941.4,1940.1,0.58841855]
[1770946142033,0.54912175,1941.4,1940.2,0.58841855]
[1770946142733,0.55296477,1941.4,1940.2,0.58841855]
[1770946142933,0.00384302,1941.4,1940.6,0.58841855]
[1770946143535,0.54912175,1941.8,1940.8,0.58841855]
[1770946143843,0.54912175,1941.8,1940.9,0.58841855]
[1770946144541,0.55581379,1941.8,1940.9,0.58841855]
[1770946145429,0.00669204,1941.8,1940.9,0.58841855]
[1770946148837,0.54912175,1942.6,1941.1,0.58841855]
[1770946149039,0.54912175,1942.6,1941.2,0.58841855]
[1770946150431,0.54912175,1942.6,1941.2,0.59234547]
[1770946150638,0.55553585,1942.6,1941.2,0.59234547]
[1770946150939,0.55553585,1942.6,1941.4,0.58841855]
[1770946152540,0.55553585,1942.6,1941.6,0.58841855]
[1770946152735,0.0064141,1942.6,1941.6,0.58841855]
[1770946153740,0.54912175,1943.0,1941.7,0.58841855]
[1770946154345,0.54912175,1943.0,1941.8,0.58841855]
[1770946154844,0.55430969,1943.0,1941.8,0.58841855]
[1770946157448,0.55430969,1943.0,1941.9,0.58841855]
[1770946162947,0.55430969,1943.0,1941.7,0.58841855]
[1770946163546,0.54912175,1942.6,1941.7,0.58841855]
[1770946164151,0.54912175,1942.6,1941.4,0.58841855]
[1770946169449,0.54912175,1942.6,1941.6,0.58841855]
[1770946169649,0.54912175,1942.9,1941.6,0.58841855]
[1770946169850,0.54912175,1942.9,1941.8,0.58841855]
[1770946171148,0.5787733,1942.7,1941.6,0.57585221]
[1770946171554,0.5787733,1942.5,1941.6,0.57585221]
[1770946171954,0.5787733,1942.5,1941.4,0.57585221]
[1770946172355,4.54661103,1942.4,1941.4,0.57585221]
[1770946172556,0.5787733,1942.3,1941.4,0.57585221]
[1770946172757,4.54735226,1942.2,1941.4,0.57585221]
[1770946173056,0.5787733,1942.1,1941.4,0.57585221]
[1770946173555,0.5787733,1942.1,1941.2,0.54535213]
[1770946174358,0.56171318,1941.9,1941.2,0.00392692]
[1770946176256,0.56171318,1941.9,1941.2,0.54535213]
[1770946177252,0.56171318,1941.9,1941.2,0.00392692]
[1770946178059,0.56171318,1941.7,1940.9,0.54142521]
[1770946178248,0.56171318,1941.7,1940.8,0.54142521]
[1770946179058,0.56171318,1941.7,1940.8,0.54518219]
[1770946186470,0.56171318,1941.7,1940.8,0.00375698]
[1770946187672,0.56171318,1941.7,1940.8,0.54518219]
[1770946191072,3.5936194,1942.2,1941.0,0.54142521]
[1770946191375,0.56171318,1942.2,1941.0,0.54142521]
[1770946193979,0.56171318,1942.0,1941.0,0.54142521]
[1770946197184,0.56171318,1941.6,1940.8,0.00375698]
[1770946197379,0.56542388,1941.6,1940.8,0.00375698]
[1770946197584,0.56171318,1941.4,1940.8,0.54518219]
[1770946197880,0.56542388,1941.6,1940.8,0.54518219]
[1770946200286,0.5408486,1942.1,1941.1,0.58264864]
[1770946201286,0.5408486,1941.9,1941.1,0.58264864]
[1770946201487,0.54454539,1941.9,1941.1,0.58264864]
[1770946201682,0.5408486,1941.7,1940.9,0.58264864]
[1770946204984,0.00369679,1941.9,1940.9,0.58264864]
[1770946205285,0.00369679,1941.9,1941.1,0.58264864]
[1770946205487,0.5408486,1942.3,1941.1,0.58264864]
[1770946205686,5.07585988,1942.2,1941.1,0.58264864]
[1770946205889,0.5408486,1942.2,1941.1,0.58264864]
[1770946206486,0.54731005,1942.2,1941.1,0.58264864]
[1770946206888,0.5408486,1942.0,1941.1,0.58264864]
[1770946207288,0.5408486,1941.8,1940.8,0.58640562]
[1770946207489,0.5408486,1941.6,1940.8,0.00375698]
[1770946207693,0.5408486,1941.4,1940.8,0.00375698]
[1770946208085,0.5408486,1941.2,1940.5,0.58264864]
[1770946208288,0.5408486,1941.0,1940.1,0.58264864]
[1770946209088,0.5408486,1941.0,1940.1,0.58926812]
[1770946211893,0.5408486,1941.0,1940.2,0.58264864]
[1770946215093,0.5408486,1941.0,1940.1,0.00661948]
[1770946215695,0.5408486,1940.8,1940.1,0.00661948]
[1770946215896,0.54500041,1940.8,1940.1,0.00661948]
[1770946216395,0.00415181,1940.8,1940.1,0.58926812]
[1770946216790,0.54500041,1940.8,1940.1,0.58926812]
[1770946218396,0.00415181,1940.8,1940.1,0.58926812]
[1770946219795,0.54500041,1940.8,1940.1,0.58926812]
[1770946222096,0.00415181,1940.8,1940.1,0.58926812]
[1770946222296,0.5408486,1941.2,1940.3,0.58264864]
[1770946223302,0.54640779,1941.2,1940.3,0.58264864]
[1770946228607,0.00555919,1941.2,1940.3,0.84054864]
[1770946228795,0.00555919,1941.2,1940.4,0.58264864]
[1770946229203,0.00555919,1941.2,1940.5,0.58264864]
[1770946231608,13.16390622,1941.8,1940.7,0.57609033]
[1770946231609,0.563463,1941.8,1940.7,0.57609033]
[1770946231808,0.563463,1941.8,1940.9,0.57609033]
[1770946232105,0.563463,1942.1,1940.9,0.57609033]
[1770946232408,0.563463,1942.1,1941.1,0.57609033]
[1770946232706,0.56934934,1942.1,1941.1,0.57609033]
[1770946233809,0.00588634,1942.1,1941.1,0.57609033]
[1770946234199,0.00588634,1942.1,1941.3,0.58273586]
[1770946234401,0.54701074,1942.4,1941.5,0.58273586]
[1770946234601,0.54701074,1942.7,1941.5,0.58273586]
[1770946235407,0.55307545,1942.7,1941.5,0.58645859]
[1770946241717,0.55307545,1942.7,1941.7,0.58273586]
[1770946241917,0.00606471,1942.7,1941.7,0.58273586]
[1770946242116,8.494,1943.4,1941.7,0.58273586]
[1770946242117,0.54701074,1943.1,1941.9,0.58273586]
[1770946242317,0.54701074,1943.1,1942.1,0.58273586]
[1770946242616,0.25747,1943.6,1942.1,0.58273586]
[1770946242617,0.54701074,1943.8,1942.3,0.58273586]
[1770946243213,0.5535549,1943.8,1942.3,0.58273586]
[1770946244317,0.5535549,1943.8,1942.5,0.58273586]
[1770946245014,0.54701074,1944.6,1943.4,0.58273586]
[1770946245214,0.54701074,1944.6,1943.6,0.58273586]
[1770946245515,0.54701074,1944.6,1943.4,0.58273586]
[1770946246019,0.55192901,1944.6,1943.4,0.58716053]
[1770946247622,0.00491827,1944.6,1943.4,0.58716053]
[1770946247820,0.55192901,1944.6,1943.4,0.58716053]
[1770946249017,0.55192901,1944.6,1943.5,0.58273586]
[1770946252424,0.55192901,1944.6,1943.4,0.58716053]
[1770946252623,0.55192901,1944.6,1943.4,0.00442467]
[1770946252824,0.54701074,1944.4,1943.4,0.00442467]
[1770946253123,0.54701074,1944.4,1942.5,2.29531011]
[1770946253124,0.54701074,1944.0,1942.9,0.58273586]
[1770946253323,0.54701074,1944.0,1942.7,0.58273586]
[1770946253531,0.54701074,1943.8,1942.7,0.58273586]
[1770946253827,0.54701074,1943.8,1942.5,0.58273586]
[1770946254022,0.54701074,1943.8,1942.5,0.58857947]
[1770946254224,0.54701074,1943.6,1942.5,0.58857947]
[1770946260428,0.54701074,1943.6,1942.5,0.00584361]
[1770946260733,0.55617871,1943.2,1942.1,0.57792693]
[1770946261740,0.56014575,1943.2,1942.1,0.58272112]
[1770946262334,0.55617871,1943.0,1942.1,0.00479419]
[1770946263236,0.55617871,1943.0,1942.1,0.58272112]
[1770946265640,0.55617871,1943.0,1942.1,0.00479419]
[1770946265840,0.55617871,1943.0,1942.1,0.58272112]
[1770946270643,0.26149704,1943.2,1942.1,0.00479419]
[1770946270644,0.55617871,1942.8,1942.1,0.00479419]
[1770946271745,0.55617871,1942.6,1942.1,0.00479419]
[1770946272042,0.55617871,1942.6,1941.6,0.57792693]
[1770946272941,0.55617871,1942.4,1941.6,0.00522477]
[1770946273540,0.55617871,1942.2,1941.6,0.00522477]
[1770946273740,0.55617871,1942.2,1940.6,6.05024075]
[1770946273741,0.55617871,1942.2,1941.2,0.57792693]
[1770946274750,0.55617871,1942.2,1941.2,0.5843707]
[1770946281445,46.29074899,1942.7,1941.2,0.5843707]
[1770946281657,0.55617871,1942.5,1941.3,0.57792693]
[1770946282557,0.55617871,1942.7,1941.3,0.57792693]
[1770946283456,0.55617871,1942.7,1941.5,0.57792693]
[1770946287657,0.55617871,1942.5,1941.5,0.57792693]
[1770946289154,0.55617871,1942.7,1941.5,0.57792693]
[1770946289360,0.55617871,1942.8,1941.8,0.57792693]
[1770946290455,0.55617871,1942.8,1941.8,6.05024075]
[1770946290655,0.25755,1943.0,1941.8,0.5736747]
[1770946290656,0.54905421,1942.6,1941.8,0.5736747]
[1770946290957,0.54905421,1942.4,1941.6,0.5736747]
[1770946291154,0.54905421,1942.4,1941.4,0.5736747]
[1770946291461,0.54905421,1942.2,1941.4,0.5736747]
[1770946292351,0.54905421,1942.2,1941.2,0.58011847]
[1770946293159,0.57931513,1942.4,1941.2,0.58011847]
[1770946293359,4.50511158,1942.3,1941.2,0.58011847]
[1770946293554,0.57931513,1942.4,1941.2,0.58011847]
[1770946293761,0.57931513,1942.3,1941.3,0.59099368]
[1770946294466,0.57931513,1942.3,1941.4,0.59099368]
[1770946294656,0.57931513,1942.5,1941.5,0.59099368]
[1770946299767,0.57931513,1942.3,1941.5,0.59099368]
[1770946301472,11.93273088,1942.7,1941.6,0.59099368]
[1770946301673,4.52361375,1942.6,1941.6,0.59099368]
[1770946301872,8.89631513,1942.7,1941.7,0.59099368]
[1770946302068,4.52348694,1942.6,1941.7,2.88322031]
[1770946302374,0.57931513,1942.9,1941.9,0.59099368]
[1770946313284,0.57931513,1942.9,1942.0,0.59099368]
[1770946313680,0.57931513,1942.9,1942.1,0.59099368]
[1770946319593,0.57931513,1942.9,1942.1,5.96399368]
[1770946319890,0.57931513,1942.9,1942.2,0.59099368]
[1770946320587,0.57931513,1942.9,1942.0,0.58816499]
[1770946320894,0.57931513,1942.9,1942.1,0.58816499]
[1770946324292,0.57931513,1942.9,1942.2,0.58816499]
[1770946327085,0.56358776,1943.1,1942.2,0.58816499]
[1770946327594,0.00396704,1943.2,1942.4,0.58816499]
[1770946327795,0.5675548,1943.2,1942.6,0.58816499]
[1770946327994,0.5675548,1943.2,1942.6,0.59319335]
[1770946329593,0.5675548,1943.2,1942.6,0.00502836]
[1770946332186,0.56358776,1943.0,1942.1,0.58816499]
[1770946333086,0.56358776,1943.0,1942.1,0.59402758]
[1770946333490,0.56358776,1943.1,1942.3,0.58816499]
[1770946333696,0.00396704,1943.2,1942.4,0.58816499]
[1770946333901,0.5675548,1943.2,1942.4,0.58816499]
[1770946334097,0.5675548,1943.2,1942.6,0.58816499]
[1770946336101,0.00396704,1943.2,1942.6,0.58816499]
[1770946337703,0.56358776,1943.5,1942.7,0.58816499]
[1770946338806,0.5700146,1943.5,1942.7,0.58816499]
[1770946340798,0.00642684,1943.5,1942.7,0.58816499]
[1770946341002,0.56358776,1944.0,1943.2,0.58816499]
[1770946341200,0.56358776,1944.3,1943.4,0.58816499]
[1770946342104,0.56818216,1944.3,1943.4,0.58816499]
[1770946342602,0.0045944,1944.3,1943.4,0.58816499]
[1770946342800,0.56818216,1944.3,1943.4,0.58816499]
[1770946344200,0.0045944,1944.3,1943.4,2.88039162]
[1770946344401,0.0045944,1944.3,1943.5,0.58816499]
[1770946344599,0.0045944,1944.3,1943.5,0.59341162]
[1770946346998,0.56818216,1944.3,1943.5,0.59341162]
[1770946347599,0.56818216,1944.3,1943.6,5.456]
[1770946347800,0.56818216,1944.3,1943.6,6.04416499]
[1770946348301,0.56818216,1944.3,1943.5,0.00524663]
[1770946349001,0.56818216,1944.3,1943.1,0.58816499]
[1770946350204,0.56818216,1944.3,1943.1,0.59371923]
[1770946353007,0.55817113,1943.9,1943.1,0.00555424]
[1770946354813,0.55817113,1943.9,1943.1,0.54533101]
[1770946357312,0.55817113,1943.9,1943.1,0.00555424]
[1770946357510,0.55817113,1943.9,1943.1,0.54533101]
[1770946360716,0.55817113,1943.9,1943.1,0.00555424]
[1770946361118,0.55817113,1943.7,1942.6,0.53977677]
[1770946362113,0.55817113,1943.7,1942.6,0.5451462]
[1770946365421,0.55817113,1943.6,1942.6,0.5451462]
[1770946365616,0.55817113,1943.5,1942.6,0.5451462]
[1770946370129,0.55817113,1943.3,1942.3,0.53977677]
[1770946370327,0.55817113,1943.3,1942.2,0.53977677]
[1770946371220,0.55817113,1943.3,1942.2,0.54574232]
[1770946375138,0.55817113,1943.3,1942.3,0.53977677]
[1770946376227,0.55817113,1943.3,1942.4,0.53977677]
[1770946376836,0.55817113,1943.5,1942.4,0.53977677]
[1770946377837,0.55817113,1943.5,1942.6,0.53977677]
[1770946381140,3.07576456,1943.7,1942.4,0.58998677]
[1770946381141,0.5531031,1943.3,1942.4,0.58998677]
[1770946381941,0.5531031,1943.1,1942.2,0.59595232]
[1770946382542,0.5531031,1943.1,1942.2,0.00596555]
[1770946382943,0.5531031,1942.8,1941.8,6.00598677]
[1770946383242,0.5531031,1942.6,1941.8,0.58998677]
[1770946383938,0.55936887,1942.6,1941.8,0.59382157]
[1770946385751,0.55936887,1942.6,1941.8,0.0038348]
[1770946386049,0.55936887,1942.6,1941.9,0.58998677]
[1770946386555,0.55936887,1942.6,1941.8,0.0038348]
[1770946389146,0.5531031,1942.4,1941.8,0.0038348]
[1770946389348,0.5531031,1942.4,1941.5,0.58998677]
[1770946390053,0.5531031,1942.4,1941.1,0.58998677]
[1770946390352,0.5531031,1942.4,1941.1,0.59515468]
[1770946399258,0.5531031,1942.4,1941.3,0.58998677]
[1770946403460,0.5531031,1942.2,1941.3,0.58998677]
[1770946407957,0.5531031,1942.0,1941.1,0.59515468]
[1770946408658,0.5531031,1941.8,1941.1,0.59515468]
[1770946408860,0.5531031,1941.8,1941.1,0.00516791]
[1770946409061,0.5531031,1941.6,1941.1,0.59515468]
[1770946410059,0.5531031,1941.7,1941.1,0.59515468]
[1770946410266,0.5531031,1941.9,1941.1,0.59515468]
[1770946410763,0.58031267,1941.7,1941.1,0.59515468]
[1770946412164,0.58031267,1941.7,1941.1,0.00516791]
[1770946412368,0.58031267,1941.5,1941.1,0.00516791]
[1770946412569,0.58031267,1941.5,1941.0,0.56650972]
[1770946412769,0.58031267,1941.5,1940.7,0.56650972]
[1770946413667,0.58031267,1941.5,1940.7,0.57192968]
[1770946416470,3.63351252,1941.7,1940.7,0.57192968]
[1770946416671,5.06514625,1941.6,1940.7,0.57192968]
[1770946416868,0.55632401,1941.7,1940.7,0.57192968]
[1770946417669,0.55632401,1941.9,1940.7,0.57192968]
[1770946417867,5.06517551,1941.8,1940.7,0.57192968]
[1770946418168,0.55632401,1941.8,1940.7,0.57192968]
[1770946418368,0.55632401,1941.9,1940.9,0.57360916]
[1770946418572,0.55632401,1942.1,1941.1,0.57360916]
[1770946418969,0.55632401,1941.9,1941.1,0.57360916]
[1770946420077,0.55632401,1942.2,1941.1,0.57360916]
[1770946420875,0.55632401,1942.4,1941.3,0.57360916]
[1770946421270,0.55632401,1942.5,1941.4,0.57360916]
[1770946425274,0.00626577,1942.6,1941.6,2.86888167]
[1770946425475,0.00626577,1942.6,1941.7,0.57360916]
[1770946427575,0.00626577,1942.6,1941.9,0.57360916]
[1770946427868,0.55632401,1942.9,1941.9,0.57360916]
[1770946428177,0.55632401,1943.2,1942.1,0.57360916]
[1770946428872,0.56152607,1943.2,1942.1,0.57360916]
[1770946429078,0.56152607,1943.2,1942.1,0.57825489]
[1770946436986,0.55632401,1943.1,1942.3,0.57360916]
[1770946437187,0.55632401,1942.9,1942.3,0.57360916]
[1770946437484,0.55632401,1942.9,1942.2,0.57360916]
[1770946437682,0.55632401,1942.9,1942.1,0.00464573]
[1770946437885,0.55632401,1942.9,1942.1,0.57825489]
[1770946438085,0.55632401,1942.7,1942.1,0.00464573]
[1770946441689,0.55632401,1942.7,1942.1,0.57619975]
[1770946442288,0.55485161,1943.1,1942.1,0.57619975]
[1770946442484,0.00520206,1943.2,1942.2,2.29239753]
[1770946442690,0.00520206,1943.2,1942.3,0.57155402]
[1770946442883,0.00520206,1943.2,1942.4,0.57155402]
[1770946443187,63.62132987,1944.1,1942.5,0.57155402]
[1770946443188,0.55485161,1943.5,1942.5,0.57155402]
[1770946443578,0.55485161,1944.0,1942.6,0.57155402]
[1770946443987,0.55945478,1944.0,1942.6,0.57155402]
[1770946444791,0.55945478,1944.0,1942.8,0.57155402]
[1770946447392,0.55485161,1943.8,1942.6,0.57155402]
[1770946447694,0.55485161,1943.6,1942.6,0.57155402]
[1770946450095,0.55485161,1943.4,1942.6,0.57155402]
[1770946450590,0.55485161,1943.4,1942.2,0.25765]
[1770946450793,0.55485161,1943.2,1942.1,0.57619975]
[1770946451089,0.55485161,1943.0,1942.1,0.57619975]
[1770946456599,0.55485161,1943.2,1942.1,0.57619975]
[1770946458000,0.55485161,1943.2,1942.2,0.57155402]
[1770946459202,0.55485161,1943.0,1942.2,0.57155402]
[1770946461391,0.55485161,1943.3,1942.2,0.57155402]
[1770946461592,0.55485161,1943.1,1942.2,0.57155402]
[1770946464000,0.55485161,1943.4,1942.2,0.57155402]
[1770946464796,0.55485161,1943.6,1942.4,0.57155402]
[1770946465495,0.55485161,1943.8,1942.6,0.57155402]
[1770946465690,0.55485161,1943.8,1942.8,0.57155402]
[1770946467296,0.55945478,1944.0,1943.0,0.57155402]
[1770946471310,0.00460317,1944.0,1943.2,0.57734251]
[1770946475508,0.54269255,1944.5,1943.4,0.55895374]
[1770946475814,0.54269255,1944.5,1943.6,0.55895374]
[1770946476512,0.54722191,1944.5,1943.6,0.56425293]
[1770946480815,0.00452936,1944.5,1943.6,0.56425293]
[1770946481016,0.54722191,1944.5,1943.6,0.56425293]
[1770946481516,0.54722191,1944.5,1943.7,0.55895374]
[1770946494624,4.49729937,1944.4,1943.6,0.00529919]
[1770946494828,0.54269255,1944.3,1943.6,0.00529919]